fUSD/lending_fUSD_20250403
["ID","MTS","AMOUNT","RATE_DAILY","PERIOD"]
[357085349,1743702795233,-795.48,0.0005178,120]
[357085350,1743702795277,-500.0,0.0005178,120]
[357085351,1743702795321,-1760.21,0.0005178,120]
[357085352,1743702795365,-500.0,0.0005178,120]
[357085353,1743702795410,-2980.91,0.0005178,120]
[357085354,1743702795452,-1579.38,0.0005178,120]
[357085355,1743702795495,-1116.73,0.0005178,120]
[357085356,1743702795539,-1693.21,0.0005178,120]
[357085357,1743702795584,-500.0,0.0005178,120]
[357085358,1743702795627,-1211.63,0.0005178,120]
[357085359,1743702795668,-1853.76,0.0005178,120]
[357085360,1743702795709,-1747.91,0.0005178,120]
[357085361,1743702795751,-1699.65,0.0005178,120]
[357085362,1743702795793,-500.0,0.0005178,120]
[357085363,1743702795834,-1666.14,0.0005178,120]
[357085364,1743702795863,-919.01,0.0005178,120]
[357085365,1743702795892,-1084.23,0.0005178,120]
[357085366,1743702795922,-1746.34,0.0005178,120]
[357085367,1743702795950,-2182.37,0.0005178,120]
[357085368,1743702795977,-1996.93,0.0005178,120]
[357085369,1743702796009,-616.61,0.0005178,120]
[357085370,1743702796036,-500.0,0.00051803,120]
[357085371,1743702796064,-500.0,0.00051803,60]
[357085372,1743702796091,-1000.0,0.00051999,120]
[357085373,1743702796120,-50000.0,0.00052,52]
[357085374,1743702796150,-326.35225778,0.00052,120]
[357085375,1743702796193,-529536.75227992,0.00052,120]
[357085376,1743702813362,-1435.37,0.00049315,120]
[357085377,1743702813395,-699.18,0.00049315,120]
[357085378,1743702813427,-500.0,0.00049315,120]
[357085379,1743702813460,-926.73,0.00049315,120]
[357085380,1743702813491,-978.7,0.00049315,120]
[357085381,1743702813525,-1443.02,0.00049315,120]
[357085382,1743702813557,-1089.89,0.00049315,120]
[357085383,1743702813588,-1222.53,0.00049315,120]
[357085384,1743702813618,-1222.56,0.00049315,120]
[357085385,1743702813648,-1225.38,0.00049315,120]
[357085386,1743702813678,-1138.23,0.00049315,120]
[357085387,1743702813707,-500.0,0.00049315,120]
[357085388,1743702813741,-1435.37,0.00049589,120]
[357085389,1743702813772,-699.18,0.00049589,120]
[357085390,1743702813803,-500.0,0.00049589,120]
[357085391,1743702813833,-926.73,0.00049589,120]
[357085392,1743702813862,-978.7,0.00049589,120]
[357085393,1743702813892,-1443.02,0.00049589,120]
[357085394,1743702813924,-1089.89,0.00049589,120]
[357085395,1743702813952,-1222.53,0.00049589,120]
[357085396,1743702813982,-1222.56,0.00049589,120]
[357085397,1743702814012,-1225.38,0.00049589,120]
[357085398,1743702814042,-1138.23,0.00049589,120]
[357085399,1743702814071,-500.0,0.00049589,120]
[357085400,1743702814102,-1435.37,0.00049863,120]
[357085401,1743702814131,-699.18,0.00049863,120]
[357085402,1743702814160,-500.0,0.00049863,120]
[357085403,1743702814190,-926.73,0.00049863,120]
[357085404,1743702814219,-978.7,0.00049863,120]
[357085405,1743702814249,-1443.02,0.00049863,120]
[357085406,1743702814280,-1089.89,0.00049863,120]
[357085407,1743702814359,-1222.53,0.00049863,120]
[357085408,1743702814390,-1222.56,0.00049863,120]
[357085409,1743702814421,-1225.38,0.00049863,120]
[357085410,1743702814452,-1138.23,0.00049863,120]
[357085411,1743702814482,-500.0,0.00049863,120]
[357085412,1743702814517,-1435.37,0.00050136,120]
[357085413,1743702814548,-699.18,0.00050136,120]
[357085414,1743702814578,-500.0,0.00050136,120]
[357085415,1743702814606,-978.7,0.00050136,120]
[357085416,1743702814635,-926.73,0.00050136,120]
[357085417,1743702814664,-1443.02,0.00050136,120]
[357085418,1743702814693,-1089.89,0.00050136,120]
[357085419,1743702814720,-1222.53,0.00050136,120]
[357085420,1743702814748,-1222.56,0.00050136,120]
[357085421,1743702814778,-1225.38,0.00050136,120]
[357085422,1743702814806,-1138.23,0.00050136,120]
[357085423,1743702814835,-500.0,0.00050136,120]
[357085424,1743702814867,-1435.37,0.0005041,120]
[357085425,1743702814897,-699.18,0.0005041,120]
[357085426,1743702814930,-500.0,0.0005041,120]
[357085427,1743702814959,-978.7,0.0005041,120]
[357085428,1743702814988,-926.73,0.0005041,120]
[357085429,1743702815018,-1443.02,0.0005041,120]
[357085430,1743702815048,-1089.89,0.0005041,120]
[357085431,1743702815076,-1222.53,0.0005041,120]
[357085432,1743702815104,-1222.56,0.0005041,120]
[357085433,1743702815132,-1225.38,0.0005041,120]
[357085434,1743702815160,-1138.23,0.0005041,120]
[357085435,1743702815188,-500.0,0.0005041,120]
[357085436,1743702815219,-1435.37,0.00050684,120]
[357085437,1743702815246,-699.18,0.00050684,120]
[357085438,1743702815274,-500.0,0.00050684,120]
[357085439,1743702815302,-978.7,0.00050684,120]
[357085440,1743702815330,-926.73,0.00050684,120]
[357085441,1743702815358,-1443.02,0.00050684,120]
[357085442,1743702815387,-1089.89,0.00050684,120]
[357085443,1743702815413,-1222.53,0.00050684,120]
[357085444,1743702815441,-1222.56,0.00050684,120]
[357085445,1743702815468,-1225.38,0.00050684,120]
[357085446,1743702815496,-1138.23,0.00050684,120]
[357085447,1743702815526,-500.0,0.00050684,120]
[357085448,1743702815557,-1435.37,0.00050958,120]
[357085449,1743702815586,-699.18,0.00050958,120]
[357085450,1743702815613,-500.0,0.00050958,120]
[357085451,1743702815641,-978.7,0.00050958,120]
[357085452,1743702815669,-926.73,0.00050958,120]
[357085453,1743702815697,-1443.02,0.00050958,120]
[357085454,1743702815727,-1089.89,0.00050958,120]
[357085455,1743702815754,-1222.53,0.00050958,120]
[357085456,1743702815783,-1222.56,0.00050958,120]
[357085457,1743702815809,-1138.23,0.00050958,120]
[357085458,1743702815836,-1225.38,0.00050958,120]
[357085459,1743702815862,-500.0,0.00050958,120]
[357085460,1743702815890,-1435.37,0.00051232,120]
[357085461,1743702815920,-699.18,0.00051232,120]
[357085462,1743702815950,-500.0,0.00051232,120]
[357085463,1743702815977,-978.7,0.00051232,120]
[357085464,1743702816004,-926.73,0.00051232,120]
[357085465,1743702816034,-1443.02,0.00051232,120]
[357085466,1743702816061,-1089.89,0.00051232,120]
[357085467,1743702816089,-1222.53,0.00051232,120]
[357085468,1743702816116,-1222.56,0.00051232,120]
[357085469,1743702816143,-1225.38,0.00051232,120]
[357085470,1743702816169,-500.0,0.00051232,120]
[357085471,1743702816196,-1138.23,0.00051232,120]
[357085472,1743702816223,-1435.37,0.00051506,120]
[357085473,1743702816250,-699.18,0.00051506,120]
[357085474,1743702816279,-500.0,0.00051506,120]
[357085475,1743702816306,-978.7,0.00051506,120]
[357085476,1743702816334,-926.73,0.00051506,120]
[357085477,1743702816364,-1443.02,0.00051506,120]
[357085478,1743702816393,-1089.89,0.00051506,120]
[357085479,1743702816420,-1222.53,0.00051506,120]
[357085480,1743702816447,-1222.56,0.00051506,120]
[357085481,1743702816474,-5000.0,0.000517,120]
[357085482,1743702816502,-1435.37,0.0005178,120]
[357085483,1743702816529,-699.18,0.0005178,120]
[357085484,1743702816558,-500.0,0.0005178,120]
[357085485,1743702816584,-978.7,0.0005178,120]
[357085486,1743702816612,-926.73,0.0005178,120]
[357085487,1743702816640,-1443.02,0.0005178,120]
[357085488,1743702816668,-1089.89,0.0005178,120]
[357085489,1743702816696,-1222.53,0.0005178,120]
[357085490,1743702816723,-1222.56,0.0005178,120]
[357085491,1743702816753,-537463.24772008,0.00052,120]
[357085492,1743702816781,-500.0,0.00052,53]
[357085493,1743702816810,-1000000.0,0.00052,120]
[357085494,1743702816836,-506.12598351,0.00052,120]
[357085495,1743702816864,-300.0,0.00052,120]
[357085496,1743702816890,-500.0,0.00052,120]
[357085497,1743702816920,-500.0,0.00052,120]
[357085498,1743702816949,-11040.0,0.00052,120]
[357085499,1743702816976,-1570.339496,0.00052054,120]
[357085500,1743702817005,-1746.393489,0.00052054,120]
[357085501,1743702817035,-500.0,0.00052054,120]
[357085502,1743702817062,-602.89,0.00052054,120]
[357085503,1743702817091,-500.0,0.00052054,120]
[357085504,1743702817119,-500.0,0.00052054,120]
[357085505,1743702817147,-985.24,0.00052054,120]
[357085506,1743702817175,-500.0,0.00052054,120]
[357085507,1743702817204,-1580.79,0.00052054,120]
[357085508,1743702817233,-2569.15,0.00052054,120]
[357085509,1743702817261,-1739.7,0.00052054,120]
[357085510,1743702817291,-1687.07,0.00052054,120]
[357085511,1743702817319,-2265.06,0.00052054,120]
[357085512,1743702817515,-1685.91,0.00052054,120]
[357085513,1743702817545,-500.0,0.00052054,120]
[357085514,1743702817574,-1903.06,0.00052054,120]
[357085515,1743702817602,-2009.82,0.00052054,120]
[357085516,1743702817632,-500.0,0.00052054,120]
[357085517,1743702817662,-2140.52,0.00052054,120]
[357085518,1743702817690,-771.9,0.00052054,120]
[357085519,1743702817717,-150.0,0.00052054,120]
[357085520,1743702817745,-1568.95,0.00052054,120]
[357085521,1743702817772,-500.0,0.00052054,120]
[357085522,1743702817799,-500.0,0.00052054,120]
[357085523,1743702817827,-998.19,0.00052054,120]
[357085524,1743702817855,-1519.77,0.00052054,120]
[357085525,1743702817883,-1817.99,0.00052054,120]
[357085526,1743702817913,-1674.65,0.00052054,120]
[357085527,1743702817941,-1554.9,0.00052054,120]
[357085528,1743702817969,-500.0,0.00052054,120]
[357085529,1743702817998,-1415.89,0.00052054,120]
[357085530,1743702818025,-500.0,0.00052054,120]
[357085531,1743702818053,-1535.52,0.00052054,120]
[357085532,1743702818082,-2083.3,0.00052054,120]
[357085533,1743702818110,-500.0,0.00052054,120]
[357085534,1743702818137,-2101.8,0.00052054,120]
[357085535,1743702818165,-1912.76,0.00052054,120]
[357085536,1743702818193,-1917.44,0.00052054,120]
[357085537,1743702818221,-505.64,0.00052054,120]
[357085538,1743702818249,-1848.74,0.00052054,120]
[357085539,1743702818279,-1939.65,0.00052054,120]
[357085540,1743702818311,-500.0,0.00052054,120]
[357085541,1743702818343,-2090.69,0.00052054,120]
[357085542,1743702818372,-1838.99,0.00052054,120]
[357085543,1743702818402,-2110.49,0.00052054,120]
[357085544,1743702818434,-778.23,0.00052054,120]
[357085545,1743702818463,-749.23,0.00052054,120]
[357085546,1743702818493,-500.0,0.00052054,120]
[357085547,1743702818522,-500.0,0.00052054,120]
[357085548,1743702818552,-574.96,0.00052054,120]
[357085549,1743702818582,-1992.38,0.00052054,120]
[357085550,1743702818612,-795.48,0.00052054,120]
[357085551,1743702818640,-500.0,0.00052054,120]
[357085552,1743702818668,-1760.21,0.00052054,120]
[357085553,1743702818696,-500.0,0.00052054,120]
[357085554,1743702818724,-2980.91,0.00052054,120]
[357085555,1743702818752,-1579.38,0.00052054,120]
[357085556,1743702818781,-1116.73,0.00052054,120]
[357085557,1743702818810,-1693.21,0.00052054,120]
[357085558,1743702818838,-500.0,0.00052054,120]
[357085559,1743702818866,-1211.63,0.00052054,120]
[357085560,1743702818895,-1853.76,0.00052054,120]
[357085561,1743702818927,-1747.91,0.00052054,120]
[357085562,1743702818954,-1699.65,0.00052054,120]
[357085563,1743702818982,-500.0,0.00052054,120]
[357085564,1743702819011,-1666.14,0.00052054,120]
[357085565,1743702819042,-919.01,0.00052054,120]
[357085566,1743702819070,-1084.23,0.00052054,120]
[357085567,1743702819098,-1746.34,0.00052054,120]
[357085568,1743702819127,-2182.37,0.00052054,120]
[357085569,1743702819157,-1996.93,0.00052054,120]
[357085570,1743702819185,-616.61,0.00052054,120]
[357085571,1743702819214,-1435.37,0.00052054,120]
[357085572,1743702819243,-699.18,0.00052054,120]
[357085573,1743702819272,-500.0,0.00052054,120]
[357085574,1743702819300,-978.7,0.00052054,120]
[357085575,1743702819332,-926.73,0.00052054,120]
[357085576,1743702819362,-1443.02,0.00052054,120]
[357085577,1743702819392,-1089.89,0.00052054,120]
[357085578,1743702819423,-1222.53,0.00052054,120]
[357085579,1743702819454,-1222.56,0.00052054,120]
[357085580,1743702819483,-500.0,0.00052077,120]
[357085581,1743702819512,-524.86930082,0.00052077,120]
[357085582,1743702819544,-513.17706914,0.00052312,60]
[357085583,1743702819575,-1570.339496,0.00052328,120]
[357085584,1743702819604,-1746.393489,0.00052328,120]
[357085585,1743702819632,-500.0,0.00052328,120]
[357085586,1743702819661,-602.89,0.00052328,120]
[357085587,1743702819689,-500.0,0.00052328,120]
[357085588,1743702819718,-500.0,0.00052328,120]
[357085589,1743702819746,-985.24,0.00052328,120]
[357085590,1743702819774,-500.0,0.00052328,120]
[357085591,1743702819803,-1580.79,0.00052328,120]
[357085592,1743702819830,-2569.15,0.00052328,120]
[357085593,1743702819858,-1739.7,0.00052328,120]
[357085594,1743702819888,-1687.07,0.00052328,120]
[357085595,1743702819919,-2265.06,0.00052328,120]
[357085597,1743702819949,-1685.91,0.00052328,120]
[357085598,1743702819978,-500.0,0.00052328,120]
[357085599,1743702820010,-1903.06,0.00052328,120]
[357085600,1743702820040,-2009.82,0.00052328,120]
[357085601,1743702820301,-500.0,0.00052328,120]
[357085602,1743702820332,-2140.52,0.00052328,120]
[357085603,1743702820363,-771.9,0.00052328,120]
[357085604,1743702820394,-150.0,0.00052328,120]
[357085605,1743702820425,-1568.95,0.00052328,120]
[357085606,1743702820455,-500.0,0.00052328,120]
[357085607,1743702820485,-500.0,0.00052328,120]
[357085608,1743702820515,-998.19,0.00052328,120]
[357085609,1743702820546,-1519.77,0.00052328,120]
[357085610,1743702820576,-1817.99,0.00052328,120]
[357085611,1743702820605,-1674.65,0.00052328,120]
[357085612,1743702820633,-1554.9,0.00052328,120]
[357085613,1743702820662,-500.0,0.00052328,120]
[357085614,1743702820690,-1415.89,0.00052328,120]
[357085615,1743702820718,-500.0,0.00052328,120]
[357085616,1743702820746,-1535.52,0.00052328,120]
[357085617,1743702820775,-2083.3,0.00052328,120]
[357085618,1743702820802,-500.0,0.00052328,120]
[357085619,1743702820830,-2101.8,0.00052328,120]
[357085620,1743702820858,-1912.76,0.00052328,120]
[357085621,1743702820887,-1917.44,0.00052328,120]
[357085622,1743702820917,-505.64,0.00052328,120]
[357085623,1743702820946,-1848.74,0.00052328,120]
[357085624,1743702820978,-1939.65,0.00052328,120]
[357085625,1743702821010,-500.0,0.00052328,120]
[357085626,1743702821039,-2090.69,0.00052328,120]
[357085627,1743702821066,-1838.99,0.00052328,120]
[357085628,1743702821094,-2110.49,0.00052328,120]
[357085629,1743702821123,-778.23,0.00052328,120]
[357085630,1743702821150,-749.23,0.00052328,120]
[357085631,1743702821178,-500.0,0.00052328,120]
[357085632,1743702821206,-500.0,0.00052328,120]
[357085633,1743702821233,-1992.38,0.00052328,120]
[357085634,1743702821261,-574.96,0.00052328,120]
[357085635,1743702821289,-795.48,0.00052328,120]
[357085636,1743702821318,-500.0,0.00052328,120]
[357085637,1743702821347,-1760.21,0.00052328,120]
[357085638,1743702821376,-373.55558288,0.00052328,120]
[357085639,1743702821405,-2980.91,0.00052328,120]
[357085640,1743702821436,-1579.38,0.00052328,120]
[357085641,1743702821465,-1116.73,0.00052328,120]
[357085642,1743702821496,-1693.21,0.00052328,120]
[357085643,1743702821526,-500.0,0.00052328,120]
[357085644,1743702821557,-1211.63,0.00052328,120]
[357085645,1743702821586,-1853.76,0.00052328,120]
[357085646,1743702821614,-1747.91,0.00052328,120]
[357085647,1743702821641,-1699.65,0.00052328,120]
[357085648,1743702821669,-500.0,0.00052328,120]
[357085649,1743702821696,-1666.14,0.00052328,120]
[357085650,1743702821724,-919.01,0.00052328,120]
[357085651,1743702821751,-1084.23,0.00052328,120]
[357085652,1743702821777,-1746.34,0.00052328,120]
[357085653,1743702821805,-2182.37,0.00052328,120]
[357085654,1743702821833,-1996.93,0.00052328,120]
[357085655,1743702821862,-616.61,0.00052328,120]
[357085656,1743702821889,-1435.37,0.00052328,120]
[357085657,1743702821918,-699.18,0.00052328,120]
[357085658,1743702821946,-500.0,0.00052328,120]
[357085659,1743702821975,-978.7,0.00052328,120]
[357085660,1743702822006,-926.73,0.00052328,120]
[357085661,1743702822039,-1443.02,0.00052328,120]
[357085662,1743702822070,-1089.89,0.00052328,120]
[357085663,1743702822099,-1222.53,0.00052328,120]
[357085664,1743702822128,-1222.56,0.00052328,120]
[357085665,1743702822156,-500.0,0.00052351,120]
[357085666,1743702822184,-474.787,0.00052375,120]
[357085667,1743702822227,-474.788,0.00052375,120]
[357085668,1743702822258,-474.787,0.00052375,120]
[357085669,1743702822290,-474.788,0.00052375,120]
[357085670,1743702822319,-474.787,0.00052375,120]
[357085671,1743702822349,-500.0,0.00052425,60]
[357085672,1743702822453,-3494.01,0.0005247,120]
[357085673,1743702822483,-210.71299913,0.00052498,120]
[357085674,1743702822511,-300.0,0.000525,120]
[357085675,1743702822541,-7890.08,0.000525,120]
[357085676,1743702822569,-500.0,0.00052514,60]
[357085677,1743702822597,-1570.339496,0.00052602,120]
[357085678,1743702822625,-1746.393489,0.00052602,120]
[357085679,1743702822652,-500.0,0.00052602,120]
[357085680,1743702822679,-602.89,0.00052602,120]
[357085681,1743702822706,-500.0,0.00052602,120]
[357085682,1743702822733,-500.0,0.00052602,120]
[357085683,1743702822760,-985.24,0.00052602,120]
[357085684,1743702822787,-500.0,0.00052602,120]
[357085685,1743702822819,-1580.79,0.00052602,120]
[357085686,1743702822846,-2569.15,0.00052602,120]
[357085687,1743702822873,-1739.7,0.00052602,120]
[357085688,1743702822901,-1687.07,0.00052602,120]
[357085689,1743702822933,-2265.06,0.00052602,120]
[357085690,1743702822963,-1685.91,0.00052602,120]
[357085691,1743702822990,-500.0,0.00052602,120]
[357085692,1743702823019,-1903.06,0.00052602,120]
[357085693,1743702823047,-2009.82,0.00052602,120]
[357085694,1743702823075,-500.0,0.00052602,120]
[357085695,1743702823102,-2140.52,0.00052602,120]
[357085696,1743702823131,-771.9,0.00052602,120]
[357085697,1743702823158,-150.0,0.00052602,120]
[357085698,1743702823185,-1568.95,0.00052602,120]
[357085699,1743702823213,-500.0,0.00052602,120]
[357085700,1743702823240,-500.0,0.00052602,120]
[357085701,1743702823270,-998.19,0.00052602,120]
[357085702,1743702823298,-1519.77,0.00052602,120]
[357085703,1743702823326,-1817.99,0.00052602,120]
[357085704,1743702823354,-1674.65,0.00052602,120]
[357085705,1743702823382,-1554.9,0.00052602,120]
[357085706,1743702823410,-500.0,0.00052602,120]
[357085707,1743702823439,-1415.89,0.00052602,120]
[357085708,1743702823466,-500.0,0.00052602,120]
[357085709,1743702823498,-1535.52,0.00052602,120]
[357085710,1743702823526,-2083.3,0.00052602,120]
[357085711,1743702823554,-500.0,0.00052602,120]
[357085712,1743702823582,-2101.8,0.00052602,120]
[357085713,1743702823610,-1912.76,0.00052602,120]
[357085714,1743702823638,-1917.44,0.00052602,120]
[357085715,1743702823667,-505.64,0.00052602,120]
[357085716,1743702823696,-1848.74,0.00052602,120]
[357085717,1743702823725,-1939.65,0.00052602,120]
[357085718,1743702823753,-500.0,0.00052602,120]
[357085719,1743702823782,-2090.69,0.00052602,120]
[357085720,1743702823810,-1838.99,0.00052602,120]
[357085721,1743702823838,-2110.49,0.00052602,120]
[357085722,1743702823867,-778.23,0.00052602,120]
[357085723,1743702823894,-749.23,0.00052602,120]
[357085724,1743702823924,-500.0,0.00052602,120]
[357085725,1743702823954,-500.0,0.00052602,120]
[357085726,1743702823986,-574.96,0.00052602,120]
[357085727,1743702824014,-1992.38,0.00052602,120]
[357085728,1743702824043,-795.48,0.00052602,120]
[357085729,1743702824071,-500.0,0.00052602,120]
[357085730,1743702824098,-1760.21,0.00052602,120]
[357085731,1743702824126,-2980.91,0.00052602,120]
[357085732,1743702824153,-1579.38,0.00052602,120]
[357085733,1743702824181,-1116.73,0.00052602,120]
[357085734,1743702824210,-1693.21,0.00052602,120]
[357085735,1743702824238,-500.0,0.00052602,120]
[357085736,1743702824267,-1211.63,0.00052602,120]
[357085737,1743702824296,-1853.76,0.00052602,120]
[357085738,1743702824326,-1747.91,0.00052602,120]
[357085739,1743702824355,-1699.65,0.00052602,120]
[357085740,1743702824384,-500.0,0.00052602,120]
[357085741,1743702824412,-1666.14,0.00052602,120]
[357085742,1743702824442,-919.01,0.00052602,120]
[357085743,1743702824469,-1084.23,0.00052602,120]
[357085744,1743702824499,-1746.34,0.00052602,120]
[357085745,1743702824529,-2182.37,0.00052602,120]
[357085746,1743702824558,-1996.93,0.00052602,120]
[357085747,1743702824587,-616.61,0.00052602,120]
[357085748,1743702824617,-1435.37,0.00052602,120]
[357085749,1743702824647,-699.18,0.00052602,120]
[357085750,1743702824677,-500.0,0.00052602,120]
[357085751,1743702824709,-978.7,0.00052602,120]
[357085752,1743702824741,-1443.02,0.00052602,120]
[357085753,1743702824772,-926.73,0.00052602,120]
[357085754,1743702824804,-1089.89,0.00052602,120]
[357085755,1743702824832,-1222.53,0.00052602,120]
[357085756,1743702824860,-1222.56,0.00052602,120]
[357085757,1743702824888,-151.0,0.00052603,120]
[357085758,1743702824918,-500.0,0.00052625,120]
[357085759,1743702824947,-592.17687531,0.00052676,60]
[357085760,1743702824979,-717.13873574,0.00052721,60]
[357085761,1743702825008,-592.65570824,0.00052792,60]
[357085762,1743702825038,-236.0418172,0.000528,120]
[357085763,1743702825066,-1570.339496,0.00052876,120]
[357085764,1743702825095,-1746.393489,0.00052876,120]
[357085765,1743702825124,-500.0,0.00052876,120]
[357085766,1743702825152,-602.89,0.00052876,120]
[357085767,1743702825180,-500.0,0.00052876,120]
[357085768,1743702825207,-500.0,0.00052876,120]
[357085769,1743702825235,-985.24,0.00052876,120]
[357085770,1743702825262,-500.0,0.00052876,120]
[357085771,1743702825291,-1580.79,0.00052876,120]
[357085772,1743702825322,-2569.15,0.00052876,120]
[357085773,1743702825350,-1739.7,0.00052876,120]
[357085774,1743702825378,-1687.07,0.00052876,120]
[357085775,1743702825406,-2265.06,0.00052876,120]
[357085776,1743702825435,-1685.91,0.00052876,120]
[357085777,1743702825601,-633.59669942,0.00052876,120]
[357085778,1743702825631,-1903.06,0.00052876,120]
[357085779,1743702825660,-2009.82,0.00052876,120]
[357085780,1743702825688,-500.0,0.00052876,120]
[357085781,1743702825716,-2140.52,0.00052876,120]
[357085782,1743702825745,-771.9,0.00052876,120]
[357085783,1743702825774,-150.0,0.00052876,120]
[357085784,1743702825802,-1568.95,0.00052876,120]
[357085785,1743702825830,-500.0,0.00052876,120]
[357085786,1743702825857,-500.0,0.00052876,120]
[357085787,1743702825885,-998.19,0.00052876,120]
[357085788,1743702825915,-1519.77,0.00052876,120]
[357085789,1743702825943,-1817.99,0.00052876,120]
[357085790,1743702825971,-1674.65,0.00052876,120]
[357085791,1743702825999,-1554.9,0.00052876,120]
[357085792,1743702826027,-500.0,0.00052876,120]
[357085793,1743702826054,-1415.89,0.00052876,120]
[357085794,1743702826083,-500.0,0.00052876,120]
[357085795,1743702826111,-1535.52,0.00052876,120]
[357085796,1743702826138,-2083.3,0.00052876,120]
[357085797,1743702826167,-182.80718103,0.00052876,120]
[357085798,1743702826195,-2101.8,0.00052876,120]
[357085799,1743702826222,-1912.76,0.00052876,120]
[357085800,1743702826250,-1917.44,0.00052876,120]
[357085801,1743702826279,-505.64,0.00052876,120]
[357085802,1743702826308,-1848.74,0.00052876,120]
[357085803,1743702826336,-1939.65,0.00052876,120]
[357085804,1743702826366,-500.0,0.00052876,120]
[357085805,1743702826396,-2090.69,0.00052876,120]
[357085806,1743702826427,-1838.99,0.00052876,120]
[357085807,1743702826456,-2110.49,0.00052876,120]
[357085808,1743702826488,-778.23,0.00052876,120]
[357085809,1743702826517,-749.23,0.00052876,120]
[357085810,1743702826548,-500.0,0.00052876,120]
[357085811,1743702826577,-500.0,0.00052876,120]
[357085812,1743702826605,-574.96,0.00052876,120]
[357085813,1743702826634,-1992.38,0.00052876,120]
[357085814,1743702826662,-795.48,0.00052876,120]
[357085815,1743702826691,-500.0,0.00052876,120]
[357085816,1743702826720,-1760.21,0.00052876,120]
[357085817,1743702826748,-2980.91,0.00052876,120]
[357085818,1743702826777,-1579.38,0.00052876,120]
[357085819,1743702826805,-1116.73,0.00052876,120]
[357085820,1743702826834,-1693.21,0.00052876,120]
[357085821,1743702826862,-500.0,0.00052876,120]
[357085822,1743702826890,-1211.63,0.00052876,120]
[357085823,1743702826920,-1853.76,0.00052876,120]
[357085824,1743702826949,-1747.91,0.00052876,120]
[357085825,1743702826976,-1699.65,0.00052876,120]
[357085826,1743702827006,-500.0,0.00052876,120]
[357085827,1743702827035,-1666.14,0.00052876,120]
[357085828,1743702827062,-919.01,0.00052876,120]
[357085829,1743702827090,-1084.23,0.00052876,120]
[357085830,1743702827118,-1746.34,0.00052876,120]
[357085831,1743702827146,-2182.37,0.00052876,120]
[357085832,1743702827173,-1996.93,0.00052876,120]
[357085833,1743702827202,-616.61,0.00052876,120]
[357085834,1743702827230,-1435.37,0.00052876,120]
[357085835,1743702827258,-699.18,0.00052876,120]
[357085836,1743702827287,-500.0,0.00052876,120]
[357085837,1743702827316,-978.7,0.00052876,120]
[357085838,1743702827344,-926.73,0.00052876,120]
[357085839,1743702827374,-1443.02,0.00052876,120]
[357085840,1743702827403,-1089.89,0.00052876,120]
[357085841,1743702827431,-1222.53,0.00052876,120]
[357085842,1743702827460,-1222.56,0.00052876,120]
[357085843,1743702827490,-500.0,0.00052899,120]
[357085844,1743702827519,-188.35,0.0005298,120]
[357085845,1743702827550,-50000.0,0.00053,53]
[357085846,1743702827579,-500.0,0.00053,54]
[357085847,1743702827608,-302.66,0.00053,120]
[357085848,1743702827638,-1000000.0,0.00053,120]
[357085849,1743702827666,-5000.000001,0.00053,120]